[Event "Titled Tuesday Blitz December 14 2021"]
[White "Shkapenko, Pavel"]
[Black "Gracia Alvarez, Gerardo Antonio"]
[WhiteFideId "4151933"]
[BlackFideId "5109124"]
[WhiteElo "2386"]
[BlackElo "2148"]
[Result "1-0"]
[Round "09"]
[TimeControl "180+1"]
[Date "2021.12.14"]
[WhiteClock "0:00:33"]
[BlackClock "0:00:03"]

1. e4 {[%clk 0:03:00]}  c5 {[%clk 0:02:42]} 2. c3 {[%clk 0:02:59]}  Nf6 {[%clk 0:02:42]} 3. e5 {[%clk 0:02:59]}  Nd5 {[%clk 0:02:41]} 4. d4 {[%clk 0:03:00]}  cxd4 {[%clk 0:02:42]} 5. cxd4 {[%clk 0:03:01]}  d6 {[%clk 0:02:42]} 6. Nf3 {[%clk 0:03:00]}  Nc6 {[%clk 0:02:42]} 7. Bc4 {[%clk 0:03:01]}  dxe5 {[%clk 0:02:42]} 8. Nxe5 {[%clk 0:03:00]}  e6 {[%clk 0:02:39]} 9. O-O {[%clk 0:02:57]}  Be7 {[%clk 0:02:36]} 10. Nf3 {[%clk 0:02:55]}  O-O {[%clk 0:02:35]} 11. Nc3 {[%clk 0:02:55]}  Nb6 {[%clk 0:02:25]} 12. Bb3 {[%clk 0:02:52]}  Bf6 {[%clk 0:02:18]} 13. Be3 {[%clk 0:02:49]}  Nb4 {[%clk 0:02:18]} 14. Ne5 {[%clk 0:02:43]}  N4d5 {[%clk 0:02:14]} 15. Ne4 {[%clk 0:02:20]}  Bxe5 {[%clk 0:02:00]} 16. dxe5 {[%clk 0:02:18]}  Nxe3 {[%clk 0:02:00]} 17. fxe3 {[%clk 0:02:18]}  Nd5 {[%clk 0:01:58]} 18. Bxd5 {[%clk 0:02:13]}  Qxd5 {[%clk 0:01:54]} 19. Qxd5 {[%clk 0:02:12]}  exd5 {[%clk 0:01:55]} 20. Nd6 {[%clk 0:02:12]}  Be6 {[%clk 0:01:51]} 21. Rac1 {[%clk 0:02:08]}  b6 {[%clk 0:01:14]} 22. Rc7 {[%clk 0:02:04]}  a5 {[%clk 0:01:11]} 23. Rfc1 {[%clk 0:01:55]}  Rfd8 {[%clk 0:01:02]} 24. R1c6 {[%clk 0:01:50]}  Rab8 {[%clk 0:00:58]} 25. Ra7 {[%clk 0:01:36]}  Ra8 {[%clk 0:00:20]} 26. Rxa8 {[%clk 0:01:33]}  Rxa8 {[%clk 0:00:21]} 27. Rxb6 {[%clk 0:01:33]}  a4 {[%clk 0:00:19]} 28. a3 {[%clk 0:01:30]}  h6 {[%clk 0:00:19]} 29. Kf2 {[%clk 0:01:29]}  Ra5 {[%clk 0:00:19]} 30. Nb7 {[%clk 0:01:14]}  Ra8 {[%clk 0:00:14]} 31. Nc5 {[%clk 0:01:14]}  Rc8 {[%clk 0:00:13]} 32. Nxa4 {[%clk 0:01:14]}  Rc2+ {[%clk 0:00:13]} 33. Kg3 {[%clk 0:01:14]}  Re2 {[%clk 0:00:07]} 34. Kf3 {[%clk 0:01:13]}  Rc2 {[%clk 0:00:03]} 35. b4 {[%clk 0:01:04]}  h5 {[%clk 0:00:03]} 36. Nc5 {[%clk 0:01:02]}  Bg4+ {[%clk 0:00:03]} 37. Kg3 {[%clk 0:01:03]}  Rc3 {[%clk 0:00:03]} 38. h3 {[%clk 0:00:56]}  Rxe3+ {[%clk 0:00:02]} 39. Kf4 {[%clk 0:00:54]}  Rxa3 {[%clk 0:00:02]} 40. hxg4 {[%clk 0:00:54]}  hxg4 {[%clk 0:00:03]} 41. Kxg4 {[%clk 0:00:47]}  Kh7 {[%clk 0:00:04]} 42. Rb7 {[%clk 0:00:45]}  Kg6 {[%clk 0:00:03]} 43. Rb6+ {[%clk 0:00:45]}  Kh7 {[%clk 0:00:03]} 44. b5 {[%clk 0:00:42]}  Ra2 {[%clk 0:00:03]} 45. g3 {[%clk 0:00:42]}  Rb2 {[%clk 0:00:03]} 46. Nd7 {[%clk 0:00:36]}  d4 {[%clk 0:00:03]} 47. Kf3 {[%clk 0:00:33]} 1-0


[Site "https://www.chess.com"]

[Event "Titled Tuesday Blitz December 14 2021"]
[White "Shubin, Kirill"]
[Black "Vidit, Santosh Gujrathi"]
[WhiteFideId "34119962"]
[BlackFideId "5029465"]
[WhiteElo "2501"]
[BlackElo "2628"]
[Result "0-1"]
[Round "09"]
[TimeControl "180+1"]
[Date "2021.12.14"]
[WhiteClock "0:00:09"]
[BlackClock "0:00:10"]

1. e4 {[%clk 0:03:00]}  c5 {[%clk 0:02:56]} 2. Nf3 {[%clk 0:03:00]}  d6 {[%clk 0:02:57]} 3. Bb5+ {[%clk 0:03:00]}  Nd7 {[%clk 0:02:56]} 4. Ba4 {[%clk 0:03:00]}  Nf6 {[%clk 0:02:56]} 5. O-O {[%clk 0:02:59]}  g6 {[%clk 0:02:54]} 6. Re1 {[%clk 0:02:58]}  Bg7 {[%clk 0:02:53]} 7. c3 {[%clk 0:02:58]}  O-O {[%clk 0:02:49]} 8. d4 {[%clk 0:02:57]}  e6 {[%clk 0:02:46]} 9. Bf4 {[%clk 0:02:51]}  Qb6 {[%clk 0:02:25]} 10. Nbd2 {[%clk 0:02:39]}  Qa6 {[%clk 0:02:17]} 11. Qb3 {[%clk 0:02:32]}  d5 {[%clk 0:02:02]} 12. exd5 {[%clk 0:02:01]}  Nxd5 {[%clk 0:01:57]} 13. Nc4 {[%clk 0:01:48]}  cxd4 {[%clk 0:01:22]} 14. Bd6 {[%clk 0:01:19]}  b6 {[%clk 0:00:54]} 15. Bc6 {[%clk 0:00:42]}  dxc3 {[%clk 0:00:43]} 16. Bxa8 {[%clk 0:00:37]}  cxb2 {[%clk 0:00:43]} 17. Rab1 {[%clk 0:00:35]}  b5 {[%clk 0:00:42]} 18. Bxd5 {[%clk 0:00:28]}  bxc4 {[%clk 0:00:34]} 19. Bxc4 {[%clk 0:00:28]}  Qxd6 {[%clk 0:00:34]} 20. Red1 {[%clk 0:00:26]}  Qc7 {[%clk 0:00:30]} 21. Nd4 {[%clk 0:00:20]}  Nb6 {[%clk 0:00:28]} 22. Bb5 {[%clk 0:00:16]}  Rd8 {[%clk 0:00:24]} 23. Nc6 {[%clk 0:00:15]}  Rxd1+ {[%clk 0:00:22]} 24. Rxd1 {[%clk 0:00:15]}  Nd5 {[%clk 0:00:19]} 25. Nd4 {[%clk 0:00:09]}  Nc3 {[%clk 0:00:10]} 0-1


[Site "https://www.chess.com"]

[Event "Titled Tuesday Blitz December 14 2021"]
[White "Stoleriu, George"]
[Black "Tsvetkov, Andrey"]
[WhiteFideId "1227505"]
[BlackFideId "34139360"]
[WhiteElo "2199"]
[BlackElo "2280"]
[Result "0-1"]
[Round "09"]
[TimeControl "180+1"]
[Date "2021.12.14"]
[WhiteClock "0:00:03"]
[BlackClock "0:00:24"]

1. e4 {[%clk 0:03:00]}  c5 {[%clk 0:02:56]} 2. Nf3 {[%clk 0:02:59]}  d6 {[%clk 0:02:57]} 3. Bb5+ {[%clk 0:02:58]}  Nd7 {[%clk 0:02:56]} 4. d4 {[%clk 0:02:58]}  cxd4 {[%clk 0:02:57]} 5. Qxd4 {[%clk 0:02:59]}  a6 {[%clk 0:02:57]} 6. Bxd7+ {[%clk 0:02:59]}  Bxd7 {[%clk 0:02:58]} 7. c4 {[%clk 0:03:00]}  e5 {[%clk 0:02:59]} 8. Qd3 {[%clk 0:03:00]}  b5 {[%clk 0:03:00]} 9. Nc3 {[%clk 0:03:01]}  bxc4 {[%clk 0:03:00]} 10. Qxc4 {[%clk 0:03:02]}  Be6 {[%clk 0:03:00]} 11. Qc6+ {[%clk 0:03:02]}  Bd7 {[%clk 0:03:01]} 12. Qc4 {[%clk 0:03:03]}  h6 {[%clk 0:03:01]} 13. O-O {[%clk 0:03:03]}  Nf6 {[%clk 0:03:01]} 14. Rd1 {[%clk 0:03:02]}  Be7 {[%clk 0:03:01]} 15. Ne1 {[%clk 0:03:03]}  O-O {[%clk 0:02:57]} 16. Nc2 {[%clk 0:03:03]}  Rc8 {[%clk 0:02:52]} 17. Qd3 {[%clk 0:02:39]}  Qb6 {[%clk 0:02:11]} 18. Ne3 {[%clk 0:02:38]}  Qb7 {[%clk 0:02:12]} 19. Ncd5 {[%clk 0:02:24]}  Nxd5 {[%clk 0:02:08]} 20. Nxd5 {[%clk 0:02:25]}  Bd8 {[%clk 0:02:08]} 21. b3 {[%clk 0:02:23]}  f5 {[%clk 0:02:03]} 22. f3 {[%clk 0:02:17]}  fxe4 {[%clk 0:01:59]} 23. fxe4 {[%clk 0:02:18]}  Bb5 {[%clk 0:01:29]} 24. Qg3 {[%clk 0:02:14]}  Rc2 {[%clk 0:01:06]} 25. Be3 {[%clk 0:01:57]}  Qf7 {[%clk 0:01:00]} 26. h3 {[%clk 0:00:50]}  Qh5 {[%clk 0:00:52]} 27. Rdc1 {[%clk 0:00:18]}  Re2 {[%clk 0:00:49]} 28. a4 {[%clk 0:00:11]}  Bd3 {[%clk 0:00:49]} 29. Bxh6 {[%clk 0:00:08]}  Qxh6 {[%clk 0:00:47]} 30. Qxd3 {[%clk 0:00:08]}  Rff2 {[%clk 0:00:46]} 31. Qg3 {[%clk 0:00:07]}  Qd2 {[%clk 0:00:45]} 32. Ne3 {[%clk 0:00:04]}  Bb6 {[%clk 0:00:29]} 33. Rc8+ {[%clk 0:00:05]}  Kf7 {[%clk 0:00:30]} 34. Rf1 {[%clk 0:00:04]}  Rxf1+ {[%clk 0:00:24]} 35. Kxf1 {[%clk 0:00:02]}  Rxe3 {[%clk 0:00:23]} 36. Qf2+ {[%clk 0:00:02]}  Qxf2+ {[%clk 0:00:23]} 37. Kxf2 {[%clk 0:00:03]}  Rc3+ {[%clk 0:00:24]} 0-1


[Site "https://www.chess.com"]

[Event "Titled Tuesday Blitz December 14 2021"]
[White "Sviridov, Valery"]
[Black "Moroni, Luca Jr"]
[WhiteFideId "4120680"]
[BlackFideId "865834"]
[WhiteElo "2454"]
[BlackElo "2491"]
[Result "1-0"]
[Round "09"]
[TimeControl "180+1"]
[Date "2021.12.14"]
[WhiteClock "0:01:08"]
[BlackClock "0:00:19"]

1. Nf3 {[%clk 0:03:00]}  g6 {[%clk 0:02:59]} 2. g3 {[%clk 0:03:00]}  Bg7 {[%clk 0:03:00]} 3. Bg2 {[%clk 0:03:01]}  d6 {[%clk 0:03:01]} 4. O-O {[%clk 0:03:01]}  Bd7 {[%clk 0:03:02]} 5. e4 {[%clk 0:02:57]}  Qc8 {[%clk 0:03:02]} 6. d4 {[%clk 0:02:58]}  Nc6 {[%clk 0:03:01]} 7. Nc3 {[%clk 0:02:57]}  Bh3 {[%clk 0:02:59]} 8. Be3 {[%clk 0:02:55]}  h5 {[%clk 0:02:59]} 9. Bxh3 {[%clk 0:02:54]}  Qxh3 {[%clk 0:03:00]} 10. Ng5 {[%clk 0:02:55]}  Qd7 {[%clk 0:03:00]} 11. h4 {[%clk 0:02:55]}  Nf6 {[%clk 0:02:58]} 12. f3 {[%clk 0:02:43]}  O-O {[%clk 0:02:54]} 13. Kg2 {[%clk 0:02:42]}  e6 {[%clk 0:02:47]} 14. Qd2 {[%clk 0:02:40]}  Nh7 {[%clk 0:02:36]} 15. Nxh7 {[%clk 0:02:37]}  Kxh7 {[%clk 0:02:37]} 16. Rad1 {[%clk 0:02:30]}  Ne7 {[%clk 0:02:10]} 17. Bg5 {[%clk 0:02:24]}  b5 {[%clk 0:02:05]} 18. Rh1 {[%clk 0:02:23]}  b4 {[%clk 0:01:58]} 19. Ne2 {[%clk 0:02:23]}  a5 {[%clk 0:01:56]} 20. Qd3 {[%clk 0:02:10]}  f5 {[%clk 0:01:38]} 21. exf5 {[%clk 0:01:51]}  exf5 {[%clk 0:01:02]} 22. Nf4 {[%clk 0:01:49]}  Rae8 {[%clk 0:01:00]} 23. Rhe1 {[%clk 0:01:43]}  Nc6 {[%clk 0:01:00]} 24. c3 {[%clk 0:01:43]}  bxc3 {[%clk 0:00:59]} 25. bxc3 {[%clk 0:01:44]}  Rxe1 {[%clk 0:00:59]} 26. Rxe1 {[%clk 0:01:44]}  Re8 {[%clk 0:00:59]} 27. Rxe8 {[%clk 0:01:29]}  Qxe8 {[%clk 0:01:00]} 28. g4 {[%clk 0:01:30]}  hxg4 {[%clk 0:00:55]} 29. fxg4 {[%clk 0:01:31]}  Ne7 {[%clk 0:00:55]} 30. gxf5 {[%clk 0:01:25]}  Nxf5 {[%clk 0:00:54]} 31. h5 {[%clk 0:01:25]}  Kg8 {[%clk 0:00:31]} 32. hxg6 {[%clk 0:01:24]}  Qc6+ {[%clk 0:00:30]} 33. Kf2 {[%clk 0:01:13]}  Ne7 {[%clk 0:00:24]} 34. Bxe7 {[%clk 0:01:11]}  Qa4 {[%clk 0:00:21]} 35. Qe2 {[%clk 0:01:08]}  Bh6 {[%clk 0:00:20]} 36. Qe6+ {[%clk 0:01:08]}  Kh8 {[%clk 0:00:19]} 37. Bf6+ {[%clk 0:01:08]}  Bg7 {[%clk 0:00:19]} 38. Qc8+ {[%clk 0:01:08]} 1-0


[Site "https://www.chess.com"]

[Event "Titled Tuesday Blitz December 14 2021"]
[White "Tari, Aryan"]
[Black "Djordjevic, Vuk"]
[WhiteFideId "1510045"]
[BlackFideId "902098"]
[WhiteElo "2656"]
[BlackElo "2463"]
[Result "0-1"]
[Round "09"]
[TimeControl "180+1"]
[Date "2021.12.14"]
[WhiteClock "0:00:02"]
[BlackClock "0:00:16"]

1. e4 {[%clk 0:02:57]}  e6 {[%clk 0:02:57]} 2. d4 {[%clk 0:02:56]}  d5 {[%clk 0:02:56]} 3. Nc3 {[%clk 0:02:53]}  Bb4 {[%clk 0:02:55]} 4. exd5 {[%clk 0:02:47]}  exd5 {[%clk 0:02:55]} 5. Bd3 {[%clk 0:02:48]}  Nf6 {[%clk 0:02:55]} 6. Nf3 {[%clk 0:02:38]}  h6 {[%clk 0:02:55]} 7. O-O {[%clk 0:02:37]}  O-O {[%clk 0:02:54]} 8. Ne2 {[%clk 0:02:38]}  Bd6 {[%clk 0:02:45]} 9. Ng3 {[%clk 0:02:25]}  Nc6 {[%clk 0:02:40]} 10. c3 {[%clk 0:02:25]}  Ne7 {[%clk 0:02:40]} 11. Ne5 {[%clk 0:02:24]}  c5 {[%clk 0:02:39]} 12. Qf3 {[%clk 0:02:07]}  cxd4 {[%clk 0:02:35]} 13. cxd4 {[%clk 0:02:08]}  Nc6 {[%clk 0:02:23]} 14. Nxc6 {[%clk 0:02:05]}  bxc6 {[%clk 0:02:23]} 15. h3 {[%clk 0:01:49]}  Re8 {[%clk 0:02:19]} 16. Bf4 {[%clk 0:01:47]}  Rb8 {[%clk 0:02:02]} 17. Rac1 {[%clk 0:01:16]}  Rxb2 {[%clk 0:01:50]} 18. Rxc6 {[%clk 0:01:16]}  Bxf4 {[%clk 0:01:49]} 19. Qxf4 {[%clk 0:01:17]}  Rxa2 {[%clk 0:01:40]} 20. Rfc1 {[%clk 0:01:10]}  Be6 {[%clk 0:01:37]} 21. Nf5 {[%clk 0:00:56]}  Ra3 {[%clk 0:00:57]} 22. Bb1 {[%clk 0:00:34]}  Rb3 {[%clk 0:00:56]} 23. Bc2 {[%clk 0:00:20]}  Rb6 {[%clk 0:00:45]} 24. Rxb6 {[%clk 0:00:11]}  axb6 {[%clk 0:00:46]} 25. Bd3 {[%clk 0:00:08]}  Bxf5 {[%clk 0:00:31]} 26. Qxf5 {[%clk 0:00:09]}  Qe7 {[%clk 0:00:26]} 27. Qf3 {[%clk 0:00:04]}  Qb4 {[%clk 0:00:23]} 28. Rc6 {[%clk 0:00:01]}  Qxd4 {[%clk 0:00:21]} 29. g3 {[%clk 0:00:02]}  Rb8 {[%clk 0:00:19]} 30. Kg2 {[%clk 0:00:01]}  b5 {[%clk 0:00:20]} 31. Qf5 {[%clk 0:00:02]}  Kf8 {[%clk 0:00:16]} 0-1


[Site "https://www.chess.com"]

[Event "Titled Tuesday Blitz December 14 2021"]
[White "Tsydypov, Zhamsaran"]
[Black "Samsonkin, Artiom"]
[WhiteFideId "4108566"]
[BlackFideId "13503111"]
[WhiteElo "2614"]
[BlackElo "2513"]
[Result "1/2-1/2"]
[Round "09"]
[TimeControl "180+1"]
[Date "2021.12.14"]
[WhiteClock "0:02:11"]
[BlackClock "0:00:14"]

1. e4 {[%clk 0:03:00]}  e6 {[%clk 0:02:57]} 2. d4 {[%clk 0:02:59]}  d5 {[%clk 0:02:57]} 3. e5 {[%clk 0:03:00]}  c5 {[%clk 0:02:57]} 4. c3 {[%clk 0:03:00]}  Nc6 {[%clk 0:02:58]} 5. Nf3 {[%clk 0:03:00]}  Qb6 {[%clk 0:02:58]} 6. Na3 {[%clk 0:02:59]}  Nh6 {[%clk 0:02:53]} 7. Nc2 {[%clk 0:02:58]}  Bd7 {[%clk 0:02:48]} 8. Bd3 {[%clk 0:02:56]}  cxd4 {[%clk 0:02:32]} 9. cxd4 {[%clk 0:02:56]}  Nb4 {[%clk 0:02:32]} 10. Nxb4 {[%clk 0:02:56]}  Bxb4+ {[%clk 0:02:32]} 11. Kf1 {[%clk 0:02:52]}  Bb5 {[%clk 0:02:30]} 12. Bxh6 {[%clk 0:02:51]}  gxh6 {[%clk 0:02:28]} 13. g3 {[%clk 0:02:51]}  O-O {[%clk 0:02:03]} 14. Kg2 {[%clk 0:02:48]}  f6 {[%clk 0:01:56]} 15. exf6 {[%clk 0:02:45]}  Rxf6 {[%clk 0:01:50]} 16. Bxb5 {[%clk 0:02:45]}  Qxb5 {[%clk 0:01:50]} 17. Ne5 {[%clk 0:02:45]}  Bd6 {[%clk 0:01:39]} 18. Ng4 {[%clk 0:02:37]}  Rg6 {[%clk 0:01:36]} 19. Re1 {[%clk 0:02:33]}  Rf8 {[%clk 0:01:29]} 20. Rb1 {[%clk 0:02:28]}  h5 {[%clk 0:01:15]} 21. Ne5 {[%clk 0:02:29]}  Bxe5 {[%clk 0:01:15]} 22. Rxe5 {[%clk 0:02:29]}  h4 {[%clk 0:01:15]} 23. Qd2 {[%clk 0:02:22]}  Rf5 {[%clk 0:00:46]} 24. Rxf5 {[%clk 0:02:20]}  exf5 {[%clk 0:00:47]} 25. Re1 {[%clk 0:02:20]}  hxg3 {[%clk 0:00:45]} 26. hxg3 {[%clk 0:02:19]}  Qd7 {[%clk 0:00:41]} 27. Qf4 {[%clk 0:02:19]}  Rg4 {[%clk 0:00:33]} 28. Qb8+ {[%clk 0:02:18]}  Kg7 {[%clk 0:00:22]} 29. Rc1 {[%clk 0:02:18]}  Qe6 {[%clk 0:00:18]} 30. Rc7+ {[%clk 0:02:18]}  Kg6 {[%clk 0:00:18]} 31. Qh8 {[%clk 0:02:11]}  Qe4+ {[%clk 0:00:17]} 32. Kh2 {[%clk 0:02:12]}  Rh4+ {[%clk 0:00:16]} 33. gxh4 {[%clk 0:02:12]}  Qxh4+ {[%clk 0:00:12]} 34. Kg2 {[%clk 0:02:12]}  Qg4+ {[%clk 0:00:12]} 35. Kf1 {[%clk 0:02:10]}  Qd1+ {[%clk 0:00:13]} 36. Kg2 {[%clk 0:02:11]}  Qg4+ {[%clk 0:00:13]} 37. Kf1 {[%clk 0:02:11]}  Qd1+ {[%clk 0:00:13]} 38. Kg2 {[%clk 0:02:11]}  Qg4+ {[%clk 0:00:14]} 1/2-1/2


[Site "https://www.chess.com"]

[Event "Titled Tuesday Blitz December 14 2021"]
[White "Vokhidov, Shamsiddin"]
[Black "Babazada, Khazar"]
[WhiteFideId "14204223"]
[BlackFideId "13413554"]
[WhiteElo "2613"]
[BlackElo "2302"]
[Result "1/2-1/2"]
[Round "09"]
[TimeControl "180+1"]
[Date "2021.12.14"]
[WhiteClock "0:00:09"]
[BlackClock "0:00:11"]

1. e4 {[%clk 0:03:00]}  c6 {[%clk 0:02:48]} 2. d4 {[%clk 0:03:00]}  d5 {[%clk 0:02:47]} 3. e5 {[%clk 0:03:00]}  g6 {[%clk 0:02:45]} 4. c4 {[%clk 0:02:59]}  Bg7 {[%clk 0:02:41]} 5. Nc3 {[%clk 0:02:59]}  Nh6 {[%clk 0:02:39]} 6. h3 {[%clk 0:02:49]}  O-O {[%clk 0:02:37]} 7. Nf3 {[%clk 0:02:49]}  f6 {[%clk 0:02:26]} 8. Be2 {[%clk 0:02:48]}  fxe5 {[%clk 0:02:26]} 9. dxe5 {[%clk 0:02:46]}  e6 {[%clk 0:02:26]} 10. O-O {[%clk 0:02:43]}  Nd7 {[%clk 0:02:26]} 11. Re1 {[%clk 0:02:38]}  Nf7 {[%clk 0:02:23]} 12. cxd5 {[%clk 0:02:38]}  cxd5 {[%clk 0:02:22]} 13. Nxd5 {[%clk 0:02:38]}  Nfxe5 {[%clk 0:02:09]} 14. Nf4 {[%clk 0:02:38]}  Nxf3+ {[%clk 0:02:04]} 15. Bxf3 {[%clk 0:02:38]}  Ne5 {[%clk 0:02:04]} 16. Be4 {[%clk 0:02:38]}  Qf6 {[%clk 0:02:03]} 17. Qe2 {[%clk 0:02:35]}  Bd7 {[%clk 0:01:47]} 18. Be3 {[%clk 0:02:32]}  Bc6 {[%clk 0:01:44]} 19. Bxc6 {[%clk 0:02:25]}  Nxc6 {[%clk 0:01:45]} 20. Qc4 {[%clk 0:02:23]}  Rae8 {[%clk 0:01:44]} 21. Rad1 {[%clk 0:02:18]}  Kh8 {[%clk 0:01:44]} 22. b3 {[%clk 0:02:10]}  Bh6 {[%clk 0:01:36]} 23. Nd3 {[%clk 0:01:47]}  Bg7 {[%clk 0:01:27]} 24. Qg4 {[%clk 0:01:44]}  Qf5 {[%clk 0:01:14]} 25. Nc5 {[%clk 0:01:35]}  b6 {[%clk 0:01:14]} 26. Ne4 {[%clk 0:01:32]}  Ne5 {[%clk 0:01:14]} 27. Qh4 {[%clk 0:01:29]}  Nf7 {[%clk 0:01:05]} 28. Rd7 {[%clk 0:01:25]}  a6 {[%clk 0:00:53]} 29. Bxb6 {[%clk 0:01:22]}  Rc8 {[%clk 0:00:53]} 30. Ng3 {[%clk 0:01:16]}  Qb5 {[%clk 0:00:47]} 31. Rb7 {[%clk 0:01:10]}  Qc6 {[%clk 0:00:27]} 32. Qe4 {[%clk 0:01:07]}  Nd6 {[%clk 0:00:26]} 33. Qxc6 {[%clk 0:01:04]}  Rxc6 {[%clk 0:00:27]} 34. Rxg7 {[%clk 0:00:48]}  Kxg7 {[%clk 0:00:27]} 35. Bd4+ {[%clk 0:00:44]}  Kf7 {[%clk 0:00:27]} 36. Be5 {[%clk 0:00:37]}  Rfc8 {[%clk 0:00:25]} 37. Kh2 {[%clk 0:00:36]}  h6 {[%clk 0:00:22]} 38. Rd1 {[%clk 0:00:35]}  Nf5 {[%clk 0:00:20]} 39. Ne4 {[%clk 0:00:35]}  Ke7 {[%clk 0:00:21]} 40. g4 {[%clk 0:00:34]}  Rc1 {[%clk 0:00:17]} 41. Rxc1 {[%clk 0:00:30]}  Rxc1 {[%clk 0:00:18]} 42. gxf5 {[%clk 0:00:31]}  exf5 {[%clk 0:00:17]} 43. Ng3 {[%clk 0:00:19]}  Rc2 {[%clk 0:00:17]} 44. Kg2 {[%clk 0:00:19]}  Rxa2 {[%clk 0:00:17]} 45. h4 {[%clk 0:00:19]}  Ke6 {[%clk 0:00:17]} 46. Bg7 {[%clk 0:00:19]}  Kf7 {[%clk 0:00:15]} 47. Bd4 {[%clk 0:00:17]}  Ra3 {[%clk 0:00:15]} 48. b4 {[%clk 0:00:18]}  Ke6 {[%clk 0:00:15]} 49. Bg7 {[%clk 0:00:17]}  Rb3 {[%clk 0:00:13]} 50. Bf8 {[%clk 0:00:17]}  g5 {[%clk 0:00:13]} 51. h5 {[%clk 0:00:15]}  f4 {[%clk 0:00:12]} 52. Nf1 {[%clk 0:00:14]}  Kf5 {[%clk 0:00:11]} 53. f3 {[%clk 0:00:14]}  Rb2+ {[%clk 0:00:11]} 54. Kh3 {[%clk 0:00:13]}  Rb3 {[%clk 0:00:11]} 55. Nh2 {[%clk 0:00:13]}  g4+ {[%clk 0:00:11]} 56. Kg2 {[%clk 0:00:13]}  g3 {[%clk 0:00:10]} 57. Ng4 {[%clk 0:00:12]}  Rb2+ {[%clk 0:00:11]} 58. Kg1 {[%clk 0:00:12]}  Kg5 {[%clk 0:00:11]} 59. Bxh6+ {[%clk 0:00:11]}  Kh4 {[%clk 0:00:09]} 60. Bxf4 {[%clk 0:00:11]}  Kh3 {[%clk 0:00:10]} 61. Bxg3 {[%clk 0:00:07]}  Kxg3 {[%clk 0:00:11]} 62. Kf1 {[%clk 0:00:06]}  Kxf3 {[%clk 0:00:11]} 63. Ne5+ {[%clk 0:00:06]}  Ke4 {[%clk 0:00:11]} 64. Nc6 {[%clk 0:00:06]}  Kd5 {[%clk 0:00:11]} 65. Nb8 {[%clk 0:00:05]}  Rxb4 {[%clk 0:00:08]} 66. Nxa6 {[%clk 0:00:05]}  Rc4 {[%clk 0:00:08]} 67. h6 {[%clk 0:00:05]}  Kc6 {[%clk 0:00:09]} 68. h7 {[%clk 0:00:06]}  Rh4 {[%clk 0:00:09]} 69. Nb4+ {[%clk 0:00:06]}  Kb5 {[%clk 0:00:10]} 70. Nd3 {[%clk 0:00:07]}  Rxh7 {[%clk 0:00:10]} 71. Ke2 {[%clk 0:00:07]}  Kc4 {[%clk 0:00:11]} 72. Ne5+ {[%clk 0:00:07]}  Kd4 {[%clk 0:00:11]} 73. Nf3+ {[%clk 0:00:08]}  Ke4 {[%clk 0:00:11]} 74. Ng5+ {[%clk 0:00:08]}  Kf5 {[%clk 0:00:11]} 75. Nxh7 {[%clk 0:00:09]} 1/2-1/2


[Site "https://www.chess.com"]

[Event "Titled Tuesday Blitz December 14 2021"]
[White "Wagner, Dennis"]
[Black "Jobava, Baadur"]
[WhiteFideId "24650684"]
[BlackFideId "13601520"]
[WhiteElo "2355"]
[BlackElo "2689"]
[Result "0-1"]
[Round "09"]
[TimeControl "180+1"]
[Date "2021.12.14"]
[WhiteClock "0:00:06"]
[BlackClock "0:01:31"]

1. d4 {[%clk 0:02:13]}  d5 {[%clk 0:02:14]} 2. c4 {[%clk 0:02:12]}  c6 {[%clk 0:02:15]} 3. Nf3 {[%clk 0:02:12]}  Nf6 {[%clk 0:02:15]} 4. Nc3 {[%clk 0:02:13]}  dxc4 {[%clk 0:02:16]} 5. e4 {[%clk 0:02:10]}  b5 {[%clk 0:02:16]} 6. Be2 {[%clk 0:02:09]}  Bg4 {[%clk 0:02:16]} 7. O-O {[%clk 0:01:59]}  e6 {[%clk 0:02:16]} 8. h3 {[%clk 0:01:52]}  Bh5 {[%clk 0:02:16]} 9. e5 {[%clk 0:01:47]}  Nd5 {[%clk 0:02:16]} 10. a4 {[%clk 0:01:44]}  Be7 {[%clk 0:02:06]} 11. Ne4 {[%clk 0:01:09]}  Bg6 {[%clk 0:02:00]} 12. Nfd2 {[%clk 0:01:05]}  O-O {[%clk 0:01:58]} 13. Bf3 {[%clk 0:00:55]}  Nd7 {[%clk 0:01:50]} 14. g3 {[%clk 0:00:39]}  N7b6 {[%clk 0:01:47]} 15. axb5 {[%clk 0:00:33]}  cxb5 {[%clk 0:01:47]} 16. h4 {[%clk 0:00:33]}  h6 {[%clk 0:01:46]} 17. Kg2 {[%clk 0:00:28]}  a5 {[%clk 0:01:46]} 18. h5 {[%clk 0:00:26]}  Bh7 {[%clk 0:01:46]} 19. Nc5 {[%clk 0:00:22]}  a4 {[%clk 0:01:44]} 20. Be4 {[%clk 0:00:20]}  Rc8 {[%clk 0:01:41]} 21. Bxh7+ {[%clk 0:00:20]}  Kxh7 {[%clk 0:01:41]} 22. Nde4 {[%clk 0:00:19]}  Nd7 {[%clk 0:01:40]} 23. Nb7 {[%clk 0:00:17]}  Qb6 {[%clk 0:01:38]} 24. Nbd6 {[%clk 0:00:18]}  Bxd6 {[%clk 0:01:38]} 25. Nxd6 {[%clk 0:00:18]}  Rc6 {[%clk 0:01:39]} 26. Qg4 {[%clk 0:00:18]}  Rxd6 {[%clk 0:01:38]} 27. exd6 {[%clk 0:00:18]}  N7f6 {[%clk 0:01:38]} 28. Qe2 {[%clk 0:00:15]}  Rd8 {[%clk 0:01:37]} 29. Bd2 {[%clk 0:00:15]}  Qxd4 {[%clk 0:01:37]} 30. Rfd1 {[%clk 0:00:14]}  Qe4+ {[%clk 0:01:34]} 31. Qxe4+ {[%clk 0:00:13]}  Nxe4 {[%clk 0:01:35]} 32. Ba5 {[%clk 0:00:07]}  Rxd6 {[%clk 0:01:34]} 33. Rd4 {[%clk 0:00:07]}  Nf4+ {[%clk 0:01:33]} 34. gxf4 {[%clk 0:00:06]}  Rxd4 {[%clk 0:01:33]} 35. Kf3 {[%clk 0:00:06]}  Nc5 {[%clk 0:01:32]} 36. Bb6 {[%clk 0:00:05]}  Rd3+ {[%clk 0:01:33]} 37. Ke2 {[%clk 0:00:06]}  Nb3 {[%clk 0:01:34]} 38. Rg1 {[%clk 0:00:05]}  Rd5 {[%clk 0:01:33]} 39. Bc7 {[%clk 0:00:05]}  Rxh5 {[%clk 0:01:33]} 40. Be5 {[%clk 0:00:05]}  f6 {[%clk 0:01:34]} 41. Bc3 {[%clk 0:00:06]}  Rd5 {[%clk 0:01:33]} 42. Kf3 {[%clk 0:00:06]}  h5 {[%clk 0:01:31]} 43. Rh1 {[%clk 0:00:06]}  Kg6 {[%clk 0:01:31]} 0-1


[Site "https://www.chess.com"]